{"text_format":"3","workbook":"xlsx","n_sheets":1,"sheets":["Sheet1"],"read":"whole","date_system":"1900"}

{"sheet":"Sheet1","index":0,"n_rows":41,"n_cols":17,"rows_kept":41}
["Course Name","Need for Accredited training Yes/ No","Description of Unit standard",{"$nulls":3},"DURATION OF THE COURSE","CERTIFICATION REQUIRED","LICENSE REQUIRED /VALIDITY PERIOD","ADDITIONAL REQUIREMENTS","ADDITIONAL REQUIREMENTS","QTY","UOM","Allowable","Sub Total",{"$f":"SUM(O2:O39)","v":0},"Min - Max Students "]
["Basic Lifting Techniques U/S 253638","Yes","US 253582 - Lift and move a load using manual lifting equipment and tackle ",5,{"$f":"L2/6*D2","v":{"v":83.33333333333334,"d":"83"}},{"$f":"E2/D2","v":{"v":16.666666666666668,"d":"17"}},"05 Days ","Yes","2 Years ","SETA Accreditation ",null,100,"Sum",null,null,"R4 ,20 P/ KM DAILY ","Min 10 - Max 10"]
["Scaffolding erecting","Yes","US 263245 - Erect, use and dismantle \naccess scaffolding ",3,{"$f":"L3/6*D3","v":150},50,"03 Days ","Yes","2 Years ","SETA Accreditation",null,300,"Sum",null,null,"Kusile Power Station Cost per day","Min 10 - Max 15"]
["Scaffolding Inspector","Yes","263205 - Inspect access scaffolding",2,{"v":33.333333333333336,"d":"33"},{"v":16.666666666666668,"d":"17"},"02 Days ",null,"2 Years ","SETA Accreditation",null,100,"Sum",null,null,"R  840,00 Travelling  Price per day","Min 10 - Max 10"]
["Fall Arrest (Working at Heights)","Yes","US 229998 - BASIC FALL ARREST TECHNICIAN (Level 1)  This will be your basic technicians who cannot do any rescues while working at heights. All fall arrest technicians should have this training",2,{"v":333.3333333333333,"d":"333"},{"v":166.66666666666666,"d":"167"},"02 Day ","Yes","2 Years ","Accreditation certificate +Working on heights Institution Certificate + Accreditation to be verified with SETA                                                                                                                  \n                                                                                  ",null,1000,"Sum"]
["Fall Arrest Technician","Yes","US 229995 - FALL ARREST TECHNICIAN (Level 2) This technician will be able to do basic rescues while working at heights. It is recommended that for every 5 Level 1 technicians they should be assisted by a Level 2 technician in case of a rescue situation ",3,500,{"v":166.66666666666666,"d":"167"},"03 Days ","Yes","2 Years ","Accreditation certificate +Working on heights Institution Certificate + Accreditation to be verified with SETA                                                                                                                  \n                                                                                  ",null,1000,"Sum",{"$nulls":3},"Min 10 - Max 10"]
["Fall Arrest Technician (Supervisor)","Yes","US 229994 - FALL ARREST RESCUE TECHNICIAN (Level 3 / Supervisor)This technician can do advanced rescues and it is recommended there be one supervisor per fall arrest site, depending on the work site classification or size of project and number of technicians.",3,50,{"v":16.666666666666668,"d":"17"},"03 Days ","Yes","2 Years ","Accreditation certificate +Working on heights Institution Certificate + Accreditation to be verified with SETA                                                                                                                  \n                                                                                  ",null,100,"Sum",{"$nulls":3},"Min 10 - Max 15"]
["Basic rigging & slinging","Yes","US 14706 - Perform basic rigging procedures ",3,150,50,"03 Days ","Yes","2 Years ","SETA Accreditation",null,300,"Sum",{"$nulls":3},"Min 10 - Max 10 "]
["First Aid L1","Yes","US 9823 - Perform basic life support and/or first aid procedures in emergencies\n116509 Apply primary emergency life support \n116511 Carry out basic first aid treatment in the workplace ",2,100,50,"02 Days ","Yes","2 Years ","DOL Approval letter",null,300,"Sum",{"$nulls":3},"Min 10 - Max 15"]
["First Aid L2","Yes","US 116507 -  Explain the functional aspects of the human anatomy in the use of primary emergency care terminology \nUS 12483 - Perform basic first aid \nUS 9965 - Render basic first aid \nUS 113929 - Render basic first aid in an office workplace ",4,200,50,"04 Days ","Yes","2 Years ","DOL Approval letter",null,300,"Sum",{"$nulls":3},"Min 10 - Max 15"]
["First Aid L3","Yes","Unit Standard 120496/254220",6,300,50,"06 Days","Yes",null,"DOL Approval letter",null,300,"Sum",{"$nulls":3},"Min 10 - Max 15"]
["Fire Fighting","Yes","252250 - Apply fire fighting techniques",2,100,50,"02 Days ","Yes","2 Years ","DOL Approval letter",null,300,"Sum",{"$nulls":3},"Min 10 - Max 15"]
["She Rep","Yes","US 259619 - Conduct workplace Occupational Health and Safety (OHS) inspections+259622 - Describe the functions of the workplace health and safety representative ",2,100,50,"2 Days","Yes","2 Years ","SETA Accreditation",null,300,"Sum",{"$nulls":3},"Min 10 - Max 15"]
["Legal Responsibility & \nAccountability","Yes","US 120344 - Demonstrate knowledge and understanding of relevant current occupational health and safety legislation",2,100,50,"2 Days",null,"2 Years ","SETA Accreditation",null,300,"Sum",{"$nulls":3},"Min 10 - Max 15"]
["Incident and Accident \nInvestigation","Yes","US 120335 -  Conduct an investigation \ninto workplace incidents",2,100,50,"2 Days","Yes","2 years","SETA Accreditation",null,300,"Sum",{"$nulls":3},"Min 10 - Max 15"]
["OHS Act Regulations",null,"US 244288 -  Demonstrate understanding of occupational health and safety legislation in the workplace ",2,100,50,"2 Days ","Yes","2 Years","SETA Accreditation",null,300,"Sum",{"$nulls":3},"Min 10 - Max 15"]
["Construction Regulations / Short Course","Yes","US 9982 - Comply with legal requirements \nfor a construction contract",2,100,50,"2 Days","Yes","2 Years","SETA Accreditation",null,300,"Sum",{"$nulls":3},"Min 10 - Max 15"]
["COID act U/S 259610","Yes ","US 117155 - Explain the scope of the Compensation for Occupational Injuries and Diseases Act 130 of 1993 (COIDA) ",2,100,50,"2 Day ","Yes","2 Years","SETA Accreditation",null,300,"Sum",{"$nulls":3},"Min 10 - Max 15"]
["Plan Task Observations ","Yes ","US 120337 - Demonstrate knowledge \npertaining to the preparation, \nconducting, recording and follow-up \nactions of a planned task observation in\n a working place",2,100,50,"2 Days","Yes","2 Years","SETA Accreditation",null,300,"Sum",{"$nulls":3},"Min 10 - Max 15"]
["RCAT Training / Short Course","Yes","US 242902 - Demonstrate an ability to \napply the principles of problem \nidentification, analysis and \ndecision-making within immediate\nwork context",3,150,50,"3 Days","Yes","None","SETA Accreditation",null,300,"Sum",{"$nulls":3},"Min 10 - Max 15"]
["HIRA","Yes","US 120330 - Conduct a continuous risk assessment in a workplace + US 259624 - Control workplace hazards and risks",2,100,50,"02 Days ","Yes","2 Years ","SETA Accreditation",null,300,"Sum",{"$nulls":3},"Min 10 - Max 15"]
["General Health and Safety/ Short Course","Yes","US 259639 - Explain basic health and safety principles in and around the workplace",1,50,50,"1 Day ","Yes","2 Years ","SETA Accreditation",null,300,"Sum",{"$nulls":3},"Min 10 - Max 15"]
["Safety for Supervisors / Short Course","Yes","US 262884 - Supervise health and safety \non a construction project",2,100,50,"2 Days","Yes","2 Years ","SETA Accreditation",null,300,"Sum",{"$nulls":3},"Min 10 - Max 15"]
["SHE Supervisors / Short Course",null,"US 264235 - Apply supervisory \nmanagement principles in an \nenterprise ",2,100,50,"2 Days","Yes","2 Years ","SETA Accreditation",null,300,"Sum"]
["Noise inducted / Short Course","Yes","259602 -  Describe sources of and control measures for noise in a work place",1,{"v":16.666666666666668,"d":"17"},{"v":16.666666666666668,"d":"17"},"1 Days","Yes","2 Years ","SETA Accreditation",null,100,"Sum",{"$nulls":3},"Min 10 - Max 10"]
["Control workplace hazardous substances U/S 259624","Yes","US 115093 - Control workplace hazardous substances or ",2,{"v":33.333333333333336,"d":"33"},{"v":16.666666666666668,"d":"17"},"02 Days ","Yes","2 Years ","SETA Accreditation",null,100,"Sum",{"$nulls":3},"Min 10 - Max 15"]
["Convey Dangerous Goods","Yes","US 123259 - Convey Dangerous Goods\n by road.",5,{"v":83.33333333333334,"d":"83"},{"v":16.666666666666668,"d":"17"},"05 Days Novice\n01 Day Recertification.","Yes","3 Years","SETA Accreditation",null,100,"Sum",{"$nulls":3},"Min 10 - Max 10"]
["Confined Space","Yes","US 15034 - Work in confined spaces on construction sites, 260139- Undertake an emergency rescue operation in a confined space",2,{"v":133.33333333333334,"d":"133"},{"v":66.66666666666667,"d":"67"},"02 Days ","Yes","2 Years ","SETA Accreditation",null,400,"Sum",{"$nulls":3},"Min 10 - Max 15"]
["Hazardous Chemicals safely U/S 14560","Yes","US 244073 - Receive, handle and store hazardous chemicals safely ",1,{"v":33.333333333333336,"d":"33"},{"v":33.333333333333336,"d":"33"},"1 Day ","Yes","2 Years ","SETA Accreditation",null,200,"Sum",{"$nulls":3},"Min 10 - Max 15"]
["Spill Kit Training / Short Course","Yes","US 242999 - Respond to and clean up a spill",1,{"v":33.333333333333336,"d":"33"},{"v":33.333333333333336,"d":"33"},"1 Day ","Yes","2 Years ","SETA Accreditation",null,200,"Sum",{"$nulls":3},"Min 10 - Max 15"]
["Emergency and Preparedness U/S 259597","Yes","US 120329 - Respond to, implement \nand manage emergencies according\nto an emergency action plan in a\nworkplace",2,{"v":66.66666666666667,"d":"67"},{"v":33.333333333333336,"d":"33"},"2 Day ","Yes","2 Years ","SETA Accreditation",null,200,"Sum",{"$nulls":3},"Min 10 - Max 15"]
["Stacking and Storage / Short Course","Yes","US 119044 - Receive and store raw \nmaterials",1,{"v":33.333333333333336,"d":"33"},{"v":33.333333333333336,"d":"33"},"1 Days","Yes","2 Years ","SETA Accreditation",null,200,"Sum",{"$nulls":3},"Min 10 - Max 15"]
["Evacuation Training / Short Course","Yes","US 242825 - Conduct evacuations and emergency drills",1,{"v":33.333333333333336,"d":"33"},{"v":33.333333333333336,"d":"33"},"1 Days","Yes","2 Years ","SETA Accreditation",null,200,"Sum",{"$nulls":3},"Min 10 - Max 15"]
["OHS Act and Regulations course (latest version of the Act and regulations) - T&SS U/S 13963","Yes ","US 242668 - Demonstrate knowledge and application of the Occupational Health and Safety Act, 85 of 1993 (OHSA) as amended and the responsibilities of management in terms of the Act.",2,{"v":333.3333333333333,"d":"333"},{"$f":"E34/D34","v":{"v":166.66666666666666,"d":"167"}},"TBA /              2 Days","Yes","N/A","SETA Accreditation",null,1000,"Sum",{"$nulls":3},"Min 10 - Max 15"]
["Excavation Supervisor Training /Short Course","Yes","US 256866 - Inspect large excavations during the excavating phase ",1,{"v":16.666666666666668,"d":"17"},{"v":16.666666666666668,"d":"17"},"1 Day ","Yes","2 Years ","SETA Accreditation",null,100,"Sum",{"$nulls":3},"Min 10 - Max 15"]
["Flagman Training / Short Course","Yes","US 14561 -  Implement roadside safety procedures ",1,{"v":16.666666666666668,"d":"17"},{"$f":"E36/D36","v":{"v":16.666666666666668,"d":"17"}},"1 Day ","Yes","2 years","SETA Accreditation",null,100,"Sum",{"$nulls":3},"Min 10 - Max 15"]
["Accommodation for various sites",{"$nulls":3},{"$f":"SUM(E2:E36)*0.6","v":{"v":2420.0000000000005,"d":"2420"}},null,"2420 Days",{"$nulls":4},2420,"Rate"]
["Air Line Tickets to various sites",{"$nulls":4},{"$f":"SUM(F2:F37)*0.06","v":106},"106 Flights",{"$nulls":4},106,"Rate"]
["Travelling to various sites by road",{"$nulls":4},{"$f":"SUM(F2:F36)*250*2","v":{"v":883333.3333333334,"d":"883333"}},"883333 Km",{"$nulls":4},{"$f":"F39","v":{"v":883333.3333333334,"d":"883333"}},"Km"]
[]
[{"$nulls":14},{"$f":"SUM(O2:O40)","v":0}]